Workbook

Sheet пн 1нед.
A1: Школа | B1: СОШ с. С 12 лет и старше | E1: Отд./корп | F1: 1 неделя | I1: День | J1: понедельник
A3: Прием пищи | B3: Раздел | C3: № рец. | D3: Блюдо | E3: Выход, г | F3: Цена | G3: Калорийность | H3: Белки | I3: Жиры | J3: Углеводы
A4: Завтрак | B4: гор.блюдо | C4: 445,36 175,12 | D4: Котлеты мясные с томатным соусом , каша гречневая вязкая с маслом | E4: 285 | F4: 64.50 | G4: 354.56 | H4: 15.68 | I4: 19 | J4: 34.63
B5: гор.напиток | C5: 283 | D5: Чай с сахаром | E5: 200 | F5: 2.20 | G5: 39,9 | H5: 0 | I5: 0 | J5: 9,98
B6: хлеб | C6: 420.02 | D6: Хлеб пшеничный обогащенный витаминами для детского питания | E6: 40 | F6: 3.50 | G6: 104 | H6: 3.2 | I6: 0.4 | J6: 22
B7: хлеб черн. | C7: 1.2 | D7: Хлеб ржано-пшеничный для детского питания | E7: 30 | F7: 3.00 | G7: 66 | H7: 2.4 | I7: 0.3 | J7: 13.8
E8: =E4+E5+E6+E7 -> 555 | F8: =F4+F5+F6+F7 -> 73.2 | G8: 564.46 | H8: 21.28 | I8: 19.7 | J8: 80.41
A9: Завтрак 2 | B9: фрукты
A12: Обед | B12: закуска | C12: 17\8 | D12: Зеленый горошек отварные | E12: 100 | F12: 10.00 | G12: 36.67 | H12: 2.95 | I12: 0.20 | J12: 5.50
B13: 1 блюдо | C13: 66.62 | D13: Суп-лапша (вермишель) | E13: 250 | F13: 16.85 | G13: 121.35 | H13: 2.77 | I13: 8 | J13: 15.61
B14: 2 блюдо | C14: 80.62 | D14: Рыба , тушеная с овощами(филе минтая) | E14: 100 | F14: 29.50 | G14: 119.99 | H14: 10.18 | I14: 15 | J14: 2.17
B15: гарнир | C15: 211.06 | D15: Макаронные изделия отварные с маслом | E15: 190 | F15: 15.6 | G15: 245.99 | H15: 6.97 | I15: 4.44 | J15: 39
B16: сладкое | C16: 305,11 | D16: Витаминизированный кисель | E16: 200 | F16: 5.00 | G16: 95 | H16: 0 | I16: 0 | J16: 23.5
B17: хлеб бел. | C17: 420.06 | D17: Хлеб пшеничный обогащенный витаминами для детского питания | E17: 50 | F17: 4.00 | G17: 130 | H17: 4 | I17: 0.5 | J17: 27.5
B18: хлеб черн. | C18: 421.11 | D18: Хлеб ржано-пшеничный для детского питания | E18: 40 | F18: 3.50 | G18: 88 | H18: 3.20 | I18: 0.4 | J18: 18.4
E19: =E13+E14+E16+E17+E18+E15+E12 -> 930 | F19: 84.45 | G19: 837.00 | H19: 30.07 | I19: 28.54 | J19: 131.68

Sheet вт 1нед.
A1: Школа | B1: СОШ с. С 12 лет и старше | E1: Отд./корп | F1: 1 неделя | I1: День | J1: вторник
A3: Прием пищи | B3: Раздел | C3: № рец. | D3: Блюдо | E3: Выход, г | F3: Цена | G3: Калорийность | H3: Белки | I3: Жиры | J3: Углеводы
A4: Завтрак | B4: гор.блюдо | C4: 38/81 | D4: Пельмени отварные с соусом сметанный с томатом | E4: 230 | F4: 49.35 | G4: 414 | H4: 18 | I4: 20.9 | J4: 39.7
B5: гор.напиток | C5: 285 | D5: Чай с лимоном и сахаром | E5: 200 | F5: 2.20 | G5: 42.28 | H5: 0.06 | I5: 0.01 | J5: 10.19
B6: хлеб | C6: 1,1 | D6: Хлеб пшеничный обогащенный витаминами для детского питания | E6: 30 | F6: 1.65 | G6: 78 | H6: 2.4 | I6: 0.3 | J6: 16.5
B7: напиток | C7: 86.12 | D7: Сок фруктовый | E7: 200 | F7: 20.00 | G7: 92.00 | H7: 1.00 | I7: 0.20 | J7: 20
E8: =E4+E5+E6+E7 -> 660 | F8: =F4+F5+F6+F7 -> 73.2 | G8: 626.28 | H8: 21.46 | I8: 21.41 | J8: 86.59
A9: Завтрак 2 | B9: фрукты
A12: Обед | B12: закуска | C12: 21.10 | D12: Салат витаминный | E12: 100 | F12: 12.00 | G12: 90.00 | H12: 1.60 | I12: 4.60 | J12: 11.10
B13: 1 блюдо | C13: 58 | D13: Суп картофельный | E13: 250 | F13: 16.00 | G13: 107 | H13: 2.4 | I13: 2.5 | J13: 18.1
B14: 2 блюдо | C14: 506.25 | D14: Тефтели из говядины с томатным соусом | E14: 100 | F14: 29.15 | G14: 180.64 | H14: 14 | I14: 12.21 | J14: 8.85
B15: гарнир | C15: 611.02 | D15: Рис припущенный | E15: 180 | F15: 19 | G15: 250 | H15: 6 | I15: 7.88 | J15: 32
B16: сладкое | C16: 293 | D16: Компот из смеси сухофруктов | E16: 200 | F16: 5.00 | G16: 128.6 | H16: 1 | I16: 0.09 | J16: 29
B17: хлеб бел. | C17: 1.1 | D17: Хлеб пшеничный обогащенный витаминами для детского питания | E17: 30 | F17: 1.65 | G17: 78 | H17: 2.4 | I17: 0.3 | J17: 16.5
B18: хлеб черн. | C18: 1,2 | D18: Хлеб ржано-пшеничный для детского питания | E18: 30 | F18: 1.65 | G18: 66 | H18: 2.40 | I18: 0,3 | J18: 13,8
E19: =E13+E14+E16+E17+E18+E15+E12 -> 890 | F19: =F13+F14+F16+F17+F18+F15+F12 -> 84.45 | G19: 900.24 | H19: 29.80 | I19: 27.88 | J19: 129.35

Sheet ср 1нед.
A1: Школа | B1: СОШ с. С 12 лет и старше | E1: Отд./корп | F1: 1 неделя | I1: День | J1: среда
A3: Прием пищи | B3: Раздел | C3: № рец. | D3: Блюдо | E3: Выход, г | F3: Цена | G3: Калорийность | H3: Белки | I3: Жиры | J3: Углеводы
A4: Завтрак | B4: гор.блюдо | C4: 66.65 | D4: Суп-лапша(вермишель) с мясом птицы(филе) | E4: 280 | F4: 50.20 | G4: 235 | H4: 13 | I4: 15.71 | J4: 21
B5: гор.напиток | C5: 305.11 | D5: Витаминизированный кисель | E5: 200 | F5: 5.00 | G5: 95 | H5: 0 | I5: 0 | J5: 23.5
B6: хлеб | C6: 1.3 | D6: Бутерброд с маслом и сыром | E6: 45 | F6: 15.00 | G6: 146.05 | H6: 5.07 | I6: 6.59 | J6: 16.57
B7: хлеб черн. | C7: 421.11 | D7: Хлеб ржано-пшеничный для детского питания | E7: 40 | F7: 3.00 | G7: 88 | H7: 3.20 | I7: 0.4 | J7: 18.4
E8: =E4+E5+E6+E7 -> 565 | F8: =F4+F5+F6+F7 -> 73.2 | G8: 564.05 | H8: 21.27 | I8: 22.7 | J8: 79.47
A9: Завтрак 2 | B9: фрукты
A12: Обед | B12: закуска | C12: 33.10 | D12: Салат "Пестрый" | E12: 100 | F12: 12.00 | G12: 105 | H12: 1 | I12: 5 | J12: 10
B13: 1 блюдо | C13: 129.14 | D13: Суп картофельный с горохом и гренками | E13: 270 | F13: 16.50 | G13: 252 | H13: 8.47 | I13: 4.87 | J13: 37.09
B14: 2 блюдо | C14: 684.1 | D14: Жаркое по-домашнему из мяса птицы (филе) | E14: 200 | F14: 46.30 | G14: 253 | H14: 14 | I14: 18 | J14: 23.44
B15: гарнир
B16: сладкое | C16: 283 | D16: Чай с сахаром | E16: 200 | F16: 5.00 | G16: 39.9 | H16: 0 | I16: 0 | J16: 9.98
B17: хлеб бел. | C17: 420.02 | D17: Хлеб пшеничный обогащенный витаминами для детского питания | E17: 40 | F17: 3.00 | G17: 104 | H17: 3.2 | I17: 0.4 | J17: 22
B18: хлеб черн. | C18: 1,2 | D18: Хлеб ржано-пшеничный для детского питания | E18: 30 | F18: 1.65 | G18: 66 | H18: 2.40 | I18: 0,3 | J18: 13,8
E19: =E13+E14+E16+E17+E18+E15+E12 -> 840 | F19: =F13+F14+F16+F17+F18+F15+F12 -> 84.45 | G19: 819.90 | H19: 28.87 | I19: 28.57 | J19: 116.71

Sheet чт 1нед.
A1: Школа | B1: СОШ с. С 12 лет и старше | E1: Отд./корп | F1: 1 неделя | I1: День | J1: четверг
A3: Прием пищи | B3: Раздел | C3: № рец. | D3: Блюдо | E3: Выход, г | F3: Цена | G3: Калорийность | H3: Белки | I3: Жиры | J3: Углеводы
A4: Завтрак | B4: гор.блюдо | C4: 131.81 | D4: Плов из мяса птицы (филе) | E4: 200 | F4: 48.70 | G4: 296 | H4: 14 | I4: 16 | J4: 30.3
B5: гор.напиток | C5: 282.11 | D5: Чай витаминизированный | E5: 200 | F5: 2.20 | G5: 39 | H5: 0 | I5: 0 | J5: 9.7
B6: хлеб | C6: 1,1 | D6: Хлеб пшеничный обогащенный витаминами для детского питания | E6: 30 | F6: 1.65 | G6: 78 | H6: 2.4 | I6: 0.3 | J6: 16.5
B7: хлеб черн. | C7: 1,2 | D7: Хлеб ржано-пшеничный для детского питания | E7: 30 | F7: 1.65 | G7: 66 | H7: 2.40 | I7: 0,3 | J7: 13,8
B8: закуска | C8: 2.11 | D8: Салат из белокочанной капусты с морковью | E8: 100 | F8: 19.00 | G8: 103.53 | H8: 2.3 | I8: 5.13 | J8: 11.68
A9: Завтрак 2 | E9: =E4+E5+E6+E7+E8 -> 560 | F9: =F4+F5+F6+F7+F8 -> 73.20 | G9: =G4+G5+G6+G7+G8 -> 582.53 | H9: =H4+H5+H6+H7+H8 -> 21.10 | I9: 21.73 | J9: 81.98
A12: Обед | B12: закуска | C12: 516.3 | D12: Маринад овощной без томата | E12: 100 | F12: 12.00 | G12: 123.00 | H12: 1.20 | I12: 8.90 | J12: 9.80
B13: 1 блюдо | C13: 53.05 | D13: Щи из свежей капусты со сметаной | E13: 260 | F13: 16.50 | G13: 104.2 | H13: 2.03 | I13: 5.7 | J13: 23.5
B14: 2 блюдо | C14: 118.1 | D14: Рагу овощное с отварным мясом | E14: 200 | F14: 42.95 | G14: 305 | H14: 16.21 | I14: 16.2 | J14: 19
B15: гарнир
B16: сладкое | C16: 294.01 | D16: Компот из свежих плодов | E16: 200 | F16: 5.00 | G16: 68 | H16: 0.16 | I16: 0.16 | J16: 22
B17: хлеб бел. | C17: 420.02 | D17: Хлеб пшеничный обогащенный витаминами для детского питания | E17: 40 | F17: 4.00 | G17: 130 | H17: 6 | I17: 0.5 | J17: 27.5
B18: хлеб черн. | C18: 421.11 | D18: Хлеб ржано-пшеничный для детского питания | E18: 40 | F18: 4.00 | G18: 88 | H18: 2.40 | I18: 0,3 | J18: 13,8
E19: =E13+E14+E16+E17+E18+E15+E12 -> 840 | F19: =F13+F14+F16+F17+F18+F15+F12 -> 84.45 | G19: =G13+G14+G16+G17+G18+G15+G12 -> 818.20 | H19: 28.00 | I19: 31.76 | J19: 115.60

Sheet пт 1нед.
A1: Школа | B1: СОШ с. С 12 лет и старше | E1: Отд./корп | F1: 1 неделя | I1: День | J1: пятница
A3: Прием пищи | B3: Раздел | C3: № рец. | D3: Блюдо | E3: Выход, г | F3: Цена | G3: Калорийность | H3: Белки | I3: Жиры | J3: Углеводы
A4: Завтрак | B4: гор.блюдо | C4: 493.21 | D4: Каша молочная "Дружба" с маслом | E4: 210 | F4: 39.00 | G4: 245 | H4: 12 | I4: 19 | J4: 35.61
B5: гор.напиток | C5: 293 | D5: Компот из смеси сухофруктов | E5: 200 | F5: 2.20 | G5: 128.6 | H5: 0.44 | I5: 0.09 | J5: 25
B6: хлеб | C6: 420.02 | D6: Хлеб пшеничный обогащенный витаминами для детского питания | E6: 40 | F6: 3.00 | G6: 104 | H6: 3.2 | I6: 0.4 | J6: 18
B7: закуска | C7: 476.01 | D7: Кисломолочный продукт для детского питания | E7: 100 | F7: 29.00 | G7: 84 | H7: 3.00 | I7: 2.5 | J7: 12.6
E8: =E4+E5+E6+E7 -> 550 | F8: =F4+F5+F6+F7 -> 73.2 | G8: 561.6 | H8: 18.64 | I8: 21.99 | J8: 91.21
A9: Завтрак 2 | B9: фрукты
A12: Обед | B12: закуска | C12: 17.4 | D12: Салат из моркови | E12: 100 | F12: 8.00 | G12: 100 | H12: 1 | I12: 5 | J12: 15
B13: 1 блюдо | C13: 56.13 | D13: Борщ с капустой и картофелем со сметаной | E13: 260 | F13: 15.60 | G13: 100.62 | H13: 2.03 | I13: 5.67 | J13: 10
B14: 2 блюдо | C14: 233.24 | D14: Филе грудки , припущенное в томатном соусе | E14: 100 | F14: 33.20 | G14: 155.55 | H14: 16.2 | I14: 15.3 | J14: 3.25
B15: гарнир | C15: 497.03 | D15: Каша гречневая рассыпчатая с маслом | E15: 185 | F15: 18 | G15: 303.55 | H15: 5.6 | I15: 4.3 | J15: 49
B16: сладкое | C16: 285 | D16: Чай с лимоном с сахаром | E16: 200 | F16: 5.00 | G16: 42.28 | H16: 0.06 | I16: 0.01 | J16: 10.19
B17: хлеб бел. | C17: 1.1 | D17: Хлеб пшеничный обогащенный витаминами для детского питания | E17: 30 | F17: 3.00 | G17: 78 | H17: 2.4 | I17: 0.3 | J17: 16.5
B18: хлеб черн. | C18: 1,2 | D18: Хлеб ржано-пшеничный для детского питания | E18: 30 | F18: 1.65 | G18: 66 | H18: 2.40 | I18: 0,3 | J18: 13,8
E19: =E13+E14+E16+E17+E18+E15+E12 -> 905 | F19: =F13+F14+F16+F17+F18+F15+F12 -> 84.45 | G19: =G13+G14+G16+G17+G18+G15+G12 -> 846.00 | H19: 29.79 | I19: 30.38 | J19: 117.24

Sheet пн 2 нед.
A1: Школа | B1: СОШ с. С 12 лет и старше | E1: Отд./корп | F1: 2 неделя | I1: День | J1: понедельник
A3: Прием пищи | B3: Раздел | C3: № рец. | D3: Блюдо | E3: Выход, г | F3: Цена | G3: Калорийность | H3: Белки | I3: Жиры | J3: Углеводы
A4: Завтрак | B4: гор.блюдо | C4: 211.07 | D4: Макаронные изделия отварные с томатным соусом | E4: 220 | F4: 42.35 | G4: 285.05 | H4: 14 | I4: 14.6 | J4: 38.8
B5: гор.напиток | C5: 283 | D5: Чай с сахаром | E5: 200 | F5: 2.20 | G5: 39.9 | H5: 0 | I5: 0 | J5: 9.98
B6: хлеб | C6: 1.5 | D6: Бутерброд с сыром | E6: 40 | F6: 8.65 | G6: 130 | H6: 5.03 | I6: 5 | J6: 16.5
B7: напиток | C7: 86.12 | D7: Сок фруктовый | E7: 200 | F7: 20.00 | G7: 92 | H7: 1.00 | I7: 0.2 | J7: 20.2
E8: =E4+E5+E6+E7 -> 660 | F8: =F4+F5+F6+F7 -> 73.2 | G8: 546.95 | H8: 20.03 | I8: 19.8 | J8: 85.48
A9: Завтрак 2 | B9: фрукты
A12: Обед | B12: закуска | C12: 17.50 | D12: Свекла отварная порционная | E12: 100 | F12: 15.00 | G12: 48 | H12: 2 | I12: 0 | J12: 10
B13: 1 блюдо | C13: 65 | D13: Суп крестьянский с пшеном со сметаной | E13: 260 | F13: 16.80 | G13: 135 | H13: 2.1 | I13: 5.1 | J13: 14.5
B14: 2 блюдо | C14: 131.81 | D14: Плов из мяса птицы (филе) | E14: 200 | F14: 41.50 | G14: 325 | H14: 15 | I14: 18.85 | J14: 32.3
B15: гарнир
B16: сладкое | C16: 289 | D16: Какао с молоком | E16: 200 | F16: 5.00 | G16: 98 | H16: 3.6 | I16: 3.3 | J16: 13.7
B17: хлеб бел. | C17: 420.06 | D17: Хлеб пшеничный обогащенный витаминами для детского питания | E17: 50 | F17: 4.50 | G17: 130 | H17: 4 | I17: 0.5 | J17: 27.5
B18: хлеб черн. | C18: 421.11 | D18: Хлеб ржано-пшеничный для детского питания | E18: 40 | F18: 1.65 | G18: 88 | H18: 3.20 | I18: 0.4 | J18: 18.4
E19: =E13+E14+E16+E17+E18+E15+E12 -> 850 | F19: =F13+F14+F16+F17+F18+F15+F12 -> 84.45 | G19: 824.16 | H19: 29.65 | I19: 28.22 | J19: 116.40

Sheet вт 2 нед.
A1: Школа | B1: СОШ с. С 12 лет и старше | E1: Отд./корп | F1: 2 неделя | I1: День | J1: вторник
A3: Прием пищи | B3: Раздел | C3: № рец. | D3: Блюдо | E3: Выход, г | F3: Цена | G3: Калорийность | H3: Белки | I3: Жиры | J3: Углеводы
A4: Завтрак | B4: гор.блюдо | C4: 506,25 175,12 | D4: Тефтели из говядины с томатным соусом, каша гречневая вязкая с маслом | E4: 285 | F4: 66.35 | G4: 352.29 | H4: 14.47 | I4: 19 | J4: 34.61
B5: гор.напиток | C5: 285 | D5: Чай с лимоном сахаром | E5: 200 | F5: 2.20 | G5: 42.28 | H5: 0.06 | I5: 0.01 | J5: 10.19
B6: хлеб | C6: 420.02 | D6: Хлеб пшеничный обогащенный витаминами для детского питания | E6: 40 | F6: 3.00 | G6: 104 | H6: 3.2 | I6: 0.4 | J6: 22
B7: хлеб черн. | C7: 1,2 | D7: Хлеб ржано-пшеничный для детского питания | E7: 30 | F7: 1.65 | G7: 66 | H7: 2.40 | I7: 0,3 | J7: 13,8
E8: =E4+E5+E6+E7 -> 555 | F8: =F4+F5+F6+F7 -> 73.2 | G8: 564.57 | H8: 20.13 | I8: 19.71 | J8: 80.6
A9: Завтрак 2 | B9: фрукты
A12: Обед | B12: закуска | C12: 516.3 | D12: Маринад овощной без томата | E12: 100 | F12: 12.00 | G12: 123.00 | H12: 1.20 | I12: 5.60 | J12: 9.80
B13: 1 блюдо | C13: 66.62 | D13: Суп-лапша (вермишель) | E13: 250 | F13: 14.00 | G13: 121.35 | H13: 2.77 | I13: 3.5 | J13: 15.61
B14: 2 блюдо | C14: 233.24 | D14: Филе грудки , припущенное в томатном соусе | E14: 100 | F14: 32.15 | G14: 155.55 | H14: 16 | I14: 14 | J14: 3.25
B15: гарнир | C15: 611.02 | D15: Рис припущенный | E15: 180 | F15: 18 | G15: 250 | H15: 4.55 | I15: 7.88 | J15: 42
B16: сладкое | C16: 293 | D16: Компот из смеси сухофруктов | E16: 200 | F16: 5.00 | G16: 128.6 | H16: 0.44 | I16: 0.09 | J16: 29
B17: хлеб бел. | C17: 1.1 | D17: Хлеб пшеничный обогащенный витаминами для детского питания | E17: 30 | F17: 1.65 | G17: 78 | H17: 2.4 | I17: 0.3 | J17: 16.5
B18: хлеб черн. | C18: 1,2 | D18: Хлеб ржано-пшеничный для детского питания | E18: 30 | F18: 1.65 | G18: 66 | H18: 2.40 | I18: 0,3 | J18: 13,8
E19: =E13+E14+E16+E17+E18+E15+E12 -> 890 | F19: =F13+F14+F16+F17+F18+F15+F12 -> 84.45 | G19: 922.50 | H19: 29.76 | I19: 31.67 | J19: 129.96

Sheet ср 2 нед.
A1: Школа | B1: СОШ с. С 12 лет и старше | E1: Отд./корп | F1: 2 неделя | I1: День | J1: среда
A3: Прием пищи | B3: Раздел | C3: № рец. | D3: Блюдо | E3: Выход, г | F3: Цена | G3: Калорийность | H3: Белки | I3: Жиры | J3: Углеводы
A4: Завтрак | B4: гор.блюдо | C4: 129.17 | D4: Суп картофельный с горохом и гренками, с мясом | E4: 300 | F4: 58.55 | G4: 240 | H4: 14 | I4: 15.71 | J4: 37.19
B5: гор.напиток | C5: 289 | D5: Какао с молоком | E5: 200 | F5: 5.00 | G5: 98 | H5: 3.6 | I5: 5 | J5: 13.7
B6: хлеб | C6: 1.1 | D6: Бутерброд с маслом | E6: 40 | F6: 8.00 | G6: 144.1 | H6: 2.48 | I6: 7.55 | J6: 16.63
B7: хлеб черн. | C7: 1,2 | D7: Хлеб ржано-пшеничный для детского питания | E7: 30 | F7: 1.65 | G7: 66 | H7: 2.40 | I7: 0,3 | J7: 13,8
E8: =E4+E5+E6+E7 -> 570 | F8: =F4+F5+F6+F7 -> 73.2 | G8: 548.1 | H8: 22.48 | I8: 28.56 | J8: 81.32
A9: Завтрак 2 | B9: фрукты
A12: Обед | B12: закуска | C12: 21.10 | D12: Салат витаминный | E12: 100 | F12: 11.60 | G12: 90.00 | H12: 1.60 | I12: 4.60 | J12: 11.10
B13: 1 блюдо | C13: 53.05 | D13: Щи из свежей капусты со сметаной | E13: 260 | F13: 13.50 | G13: 96.86 | H13: 2.03 | I13: 5.7 | J13: 9.11
B14: 2 блюдо | C14: 80.62 | D14: Рыба , тушеная с овощами(филе минтая) | E14: 100 | F14: 16.50 | G14: 119.99 | H14: 13 | I14: 7.78 | J14: 2.17
B15: гарнир | C15: 139.07 | D15: Картофель тушеный | E15: 180 | F15: 14.55 | G15: 235.51 | H15: 4.02 | I15: 10 | J15: 29.56
B16: гор.напиток | C16: 305,11 | D16: Витаминизированный кисель | E16: 200 | F16: 5.00 | G16: 95 | H16: 0 | I16: 0 | J16: 23.5
B17: хлеб бел. | C17: 1.1 | D17: Хлеб пшеничный обогащенный витаминами для детского питания | E17: 30 | F17: 1.65 | G17: 78 | H17: 2.4 | I17: 0.3 | J17: 16.5
B18: хлеб черн. | C18: 1.2 | D18: Хлеб ржано-пшеничный для детского питания | E18: 30 | F18: 1.65 | G18: 66 | H18: 2.40 | I18: 0,3 | J18: 13,8
B19: сладкое | C19: 476.01 | D19: Кисломолочный продукт для детского питания | E19: 100 | F19: 20.00 | G19: 84 | H19: 3.00 | I19: 2.5 | J19: 12.6
E20: =E12+E13+E14+E15+E16+E17+E18+E19 -> 1000 | F20: =F12+F13+F14+F15+F16+F17+F18+F19 -> 84.45 | G20: =G12+G13+G14+G15+G16+G17+G18+G19 -> 865.36 | H20: =H12+H13+H14+H15+H16+H17+H18+H19 -> 28.45 | I20: =I12+I13+I14+I15+I16+I17+I18+I19 -> 31.18 | J20: =J12+J13+J14+J15+J16+J17+J18+J19 -> 118.34

Sheet чт 2 нед.
A1: Школа | B1: СОШ с. С 12 лет и старше | E1: Отд./корп | F1: 2 неделя | I1: День | J1: четверг
A3: Прием пищи | B3: Раздел | C3: № рец. | D3: Блюдо | E3: Выход, г | F3: Цена | G3: Калорийность | H3: Белки | I3: Жиры | J3: Углеводы
A4: Завтрак | B4: гор.блюдо | C4: 118.13 | D4: Рагу овощное с филе куриной грудки | E4: 250 | F4: 49.90 | G4: 270.5 | H4: 14.3 | I4: 19 | J4: 17.15
B5: гор.напиток | C5: 293 | D5: Компот из смеси сухофруктов | E5: 200 | F5: 5.00 | G5: 128.6 | H5: 0.44 | I5: 0.09 | J5: 21
B6: хлеб | C6: 1.1 | D6: Хлеб пшеничный обогащенный витаминами для детского питания | E6: 30 | F6: 1.65 | G6: 78 | H6: 2.40 | I6: 0.3 | J6: 16.5
B7: хлеб черн. | C7: 1,2 | D7: Хлеб ржано-пшеничный для детского питания | E7: 30 | F7: 1.65 | G7: 66 | H7: 2.40 | I7: 0,3 | J7: 13,8
B8: сладкое | C8: 38/5 | D8: Пастила фруктовая | E8: 40 | F8: 15.00 | G8: 106 | H8: 1 | I8: 0 | J8: 19
A9: Завтрак 2 | E9: =E4+E5+E6+E7+E8 -> 550 | F9: =F4+F5+F6+F7+F8 -> 73.20 | G9: =G4+G5+G6+G7+G8 -> 649.10 | H9: =H4+H5+H6+H7+H8 -> 20.54 | I9: 19.69 | J9: 87.45
A12: Обед | B12: закуска | C12: 17.6 | D12: Морковь свежая порционная | E12: 100 | F12: 12.30 | G12: 32.00 | H12: 1.20 | I12: 0.10 | J12: 6.30
B13: 1 блюдо | C13: 67.08 | D13: Свекольник со сметаной | E13: 255 | F13: 16.50 | G13: 165 | H13: 2.61 | I13: 7 | J13: 18.13
B14: 2 блюдо | C14: 445.36 | D14: Котлеты мясные с томатным соусом | E14: 100 | F14: 35.35 | G14: 182.53 | H14: 13 | I14: 16 | J14: 8.87
B15: гарнир | C15: 211.06 | D15: Макаронные изделия отварные с маслом | E15: 190 | F15: 12 | G15: 255 | H15: 6.97 | I15: 4.44 | J15: 44.48
B16: сладкое | C16: 283 | D16: Чай с сахаром | E16: 200 | F16: 5.00 | G16: 39.9 | H16: 0 | I16: 0 | J16: 9.98
B17: хлеб бел. | C17: 1.1 | D17: Хлеб пшеничный обогащенный витаминами для детского питания | E17: 30 | F17: 1.65 | G17: 78 | H17: 2.4 | I17: 0.3 | J17: 16.5
B18: хлеб черн. | C18: 1,2 | D18: Хлеб ржано-пшеничный для детского питания | E18: 30 | F18: 1.65 | G18: 66 | H18: 2.40 | I18: 0,3 | J18: 13,8
E19: =E13+E14+E16+E17+E18+E15+E12 -> 905 | F19: =F13+F14+F16+F17+F18+F15+F12 -> 84.45 | G19: 818.43 | H19: 28.58 | I19: 28.14 | J19: 118.06

Sheet пт 2 нед
A1: Школа | B1: СОШ с. С 12 лет и старше | E1: Отд./корп | F1: 2 неделя | I1: День | J1: пятница
A3: Прием пищи | B3: Раздел | C3: № рец. | D3: Блюдо | E3: Выход, г | F3: Цена | G3: Калорийность | H3: Белки | I3: Жиры | J3: Углеводы
A4: Завтрак | B4: гор.блюдо | C4: 430.37 | D4: Каша рисовая молочная вязкая с маслом | E4: 210 | F4: 42.35 | G4: 285 | H4: 9 | I4: 11.6 | J4: 43
B5: гор.напиток | C5: 282.11 | D5: Чай витаминизированный | E5: 200 | F5: 2.20 | G5: 39 | H5: 0 | I5: 0 | J5: 9.7
B6: хлеб бел. | C6: 1.50 | D6: Бутерброд с сыром | E6: 40 | F6: 15.00 | G6: 113.00 | H6: 8.50 | I6: 7.00 | J6: 17
B7: хлеб черн. | C7: 1.2 | D7: Хлеб ржано-пшеничный для детского питания | E7: 30 | F7: 1.65 | G7: 66 | H7: 2.4 | I7: 0.3 | J7: 13.8
B8: фрукт | C8: 38 | D8: Яблоко | E8: 100 | F8: 12.00 | G8: 47 | H8: 0.4 | I8: 0.4 | J8: 9.8
A9: Завтрак 2 | E9: =E4+E5+E6+E7+E8 -> 580 | F9: =F4+F5+F6+F7+F8 -> 73.20 | G9: =G4+G5+G6+G7+G8 -> 550.00 | H9: =H4+H5+H6+H7+H8 -> 20.30 | I9: 19.30 | J9: 92.80
A12: Обед | B12: закуска | C12: 2.11 | D12: Салат из белокочанной капусты с морковью | E12: 100 | F12: 15.00 | G12: 101 | H12: 1.96 | I12: 5 | J12: 11
B13: 1 блюдо | C13: 65.11 | D13: Суп с гречневой крупой | E13: 250 | F13: 16.00 | G13: 115 | H13: 2.53 | I13: 3.06 | J13: 15.37
B14: 2 блюдо | C14: 97.65 | D14: Жаркое по-домашнему с говядиной | E14: 200 | F14: 44.45 | G14: 325 | H14: 16.2 | I14: 20 | J14: 25.33
B15: гарнир
B16: сладкое | C16: 294.01 | D16: Компот из свежих плодов | E16: 200 | F16: 5.00 | G16: 68 | H16: 0.16 | I16: 0 | J16: 18.89
B17: хлеб бел. | C17: 420.06 | D17: Хлеб пшеничный обогащенный витаминами для детского питания | E17: 50 | F17: 2.00 | G17: 130 | H17: 4 | I17: 0.5 | J17: 27.5
B18: хлеб черн. | C18: 421.11 | D18: Хлеб ржано-пшеничный для детского питания | E18: 40 | F18: 2.00 | G18: 88 | H18: 3.20 | I18: 0.4 | J18: 18.4
E19: =E13+E14+E16+E17+E18+E15+E12 -> 840 | F19: =F13+F14+F16+F17+F18+F15+F12 -> 84.45 | G19: 827.00 | H19: 28.05 | I19: 29.17 | J19: 116.00
